fUSD/lending_fUSD_20240424
["ID","MTS","AMOUNT","RATE_DAILY","PERIOD"]
[323405059,1713971489245,-500.0,0.00012328,2]
[323405060,1713971489256,-500.0,0.00012328,2]
[323405061,1713971489266,-5581.45,0.00012328,2]
[323405062,1713971489278,-537.03,0.00012328,2]
[323405063,1713971489288,-500.0,0.00012328,2]
[323405064,1713971489298,-2316.41,0.00012328,2]
[323405065,1713971489307,-19318.67,0.00012328,2]
[323405066,1713971489316,-941.61,0.00012328,2]
[323405067,1713971489326,-3933.71,0.00012328,2]
[323405068,1713971489339,-2747.31,0.00012328,2]
[323405069,1713971489349,-1364.05,0.00012328,2]
[323405070,1713971489359,-1069.73,0.00012328,2]
[323405071,1713971489368,-2109.48,0.00012328,2]
[323405072,1713971489378,-500.0,0.00012328,2]
[323405073,1713971489388,-500.0,0.00012328,2]
[323405074,1713971489397,-500.0,0.00012328,2]
[323405075,1713971489409,-500.0,0.00012328,2]
[323405076,1713971489418,-5584.64,0.00012328,2]
[323405077,1713971489427,-6056.82,0.00012328,2]
[323405078,1713971489437,-1076.15,0.00012328,2]
[323405079,1713971489446,-11108.74,0.00012328,2]
[323405080,1713971489455,-9374.05,0.00012328,2]
[323405081,1713971489465,-4688.69,0.00012328,2]
[323405082,1713971489475,-2897.45,0.00012328,2]
[323405083,1713971489485,-500.0,0.00012328,2]
[323405084,1713971489495,-33558.3,0.00012328,2]
[323405085,1713971489504,-500.0,0.00012328,2]
[323405086,1713971489514,-2104.85,0.00012328,2]
[323405087,1713971489524,-897.93,0.00012328,2]
[323405088,1713971489537,-2539.44,0.00012328,2]
[323405089,1713971489546,-2229.71,0.00012328,2]
[323405090,1713971489556,-7410.74,0.00012328,2]
[323405091,1713971489565,-500.0,0.00012328,2]
[323405092,1713971489574,-500.0,0.00012328,2]
[323405093,1713971489583,-560.7,0.00012328,2]
[323405094,1713971489592,-500.0,0.00012328,2]
[323405095,1713971489601,-1376.33,0.00012328,2]
[323405096,1713971489610,-2218.82,0.00012328,2]
[323405097,1713971489619,-1396.88,0.00012328,2]
[323405098,1713971489629,-4637.36,0.00012328,2]
[323405099,1713971489637,-3302.52,0.00012328,2]
[323405100,1713971489646,-500.0,0.00012328,2]
[323405101,1713971489656,-2517.66,0.00012328,2]
[323405102,1713971489664,-500.0,0.00012328,2]
[323405103,1713971489673,-6389.72,0.00012328,2]
[323405104,1713971489683,-2232.11,0.00012328,2]
[323405105,1713971489693,-500.0,0.00012328,2]
[323405106,1713971489704,-2969.59,0.00012328,2]
[323405107,1713971489714,-500.0,0.00012328,2]
[323405108,1713971489724,-500.0,0.00012328,2]
[323405109,1713971489733,-500.0,0.00012328,2]
[323405110,1713971489743,-500.0,0.00012328,2]
[323405111,1713971489752,-500.0,0.00012328,2]
[323405112,1713971489762,-500.0,0.00012328,2]
[323405113,1713971489772,-3068.67,0.00012328,2]
[323405114,1713971489784,-500.0,0.00012328,2]
[323405115,1713971489793,-712.55,0.00012328,2]
[323405116,1713971489803,-1633.89,0.00012328,2]
[323405117,1713971489812,-4703.73,0.00012328,2]
[323405118,1713971489821,-6824.58,0.00012328,2]
[323405119,1713971489831,-500.0,0.00012328,2]
[323405120,1713971489840,-4774.22,0.00012328,2]
[323405121,1713971489850,-500.0,0.00012328,2]
[323405122,1713971489859,-500.0,0.00012328,2]
[323405123,1713971489869,-500.0,0.00012328,2]
[323405124,1713971489879,-500.0,0.00012328,2]
[323405125,1713971489888,-6983.95,0.00012328,2]
[323405126,1713971489897,-684.58,0.00012328,2]
[323405127,1713971489907,-500.0,0.00012328,2]
[323405128,1713971489917,-500.0,0.00012328,2]
[323405129,1713971489926,-500.0,0.00012328,2]
[323405130,1713971489936,-5260.46,0.00012328,2]
[323405132,1713971489946,-500.0,0.00012328,2]
[323405133,1713971489955,-500.0,0.00012328,2]
[323405134,1713971489964,-630.16,0.00012328,2]
[323405135,1713971489973,-1402.14,0.00012328,2]
[323405136,1713971489983,-3704.19,0.00012328,2]
[323405137,1713971489992,-500.0,0.00012328,2]
[323405138,1713971490003,-5398.19,0.00012328,2]
[323405139,1713971490012,-16232.98,0.00012328,2]
[323405140,1713971490022,-500.0,0.00012328,2]
[323405141,1713971490035,-500.0,0.00012328,2]
[323405142,1713971490045,-500.0,0.00012328,2]
[323405143,1713971490055,-538.93,0.00012328,2]
[323405144,1713971490064,-500.0,0.00012328,2]
[323405145,1713971490074,-500.0,0.00012328,2]
[323405146,1713971490083,-9207.42,0.00012328,2]
[323405147,1713971490093,-500.0,0.00012328,2]
[323405148,1713971490103,-500.0,0.00012328,2]
[323405149,1713971490113,-547.36,0.00012328,2]
[323405150,1713971490122,-500.0,0.00012328,2]
[323405151,1713971490131,-5109.87,0.00012328,2]
[323405152,1713971490141,-500.0,0.00012328,2]
[323405153,1713971490151,-937.55,0.00012328,2]
[323405154,1713971490160,-6048.32,0.00012328,2]
[323405155,1713971490170,-500.0,0.00012328,2]
[323405156,1713971490179,-13720.59,0.00012328,2]
[323405157,1713971490188,-500.0,0.00012328,2]
[323405158,1713971490198,-500.0,0.00012328,2]
[323405159,1713971490207,-1598.35,0.00012328,2]
[323405160,1713971490216,-500.0,0.00012328,2]
[323405161,1713971490226,-178.77,0.00012384,2]
[323405162,1713971490235,-5404.04345652,0.00012418,2]
[323405163,1713971490246,-156.77,0.00012492,2]
[323405164,1713971490256,-500.0,0.00012561,2]
[323405165,1713971490265,-500.0,0.0001257,2]
[323405166,1713971490275,-2040.22,0.00012573,2]
[323405167,1713971490289,-5404.04345652,0.00012579,2]
[323405168,1713971490299,-4348.49,0.000126,2]
[323405169,1713971490308,-5347.72,0.000126,2]
[323405170,1713971490318,-15810.62,0.000126,2]
[323405171,1713971490333,-9139.58,0.000126,2]
[323405172,1713971490344,-5784.5,0.000126,2]
[323405173,1713971490353,-970.41,0.000126,2]
[323405174,1713971490363,-4757.89,0.000126,2]
[323405175,1713971490373,-843.23,0.000126,2]
[323405176,1713971490383,-7178.12,0.000126,2]
[323405177,1713971490393,-1302.1,0.000126,2]
[323405178,1713971490403,-876.38,0.000126,2]
[323405179,1713971490415,-3767.06,0.000126,2]
[323405180,1713971490424,-500.0,0.000126,2]
[323405181,1713971490433,-6249.85,0.000126,2]
[323405182,1713971490442,-4729.55,0.000126,2]
[323405183,1713971490453,-7690.41,0.000126,2]
[323405184,1713971490462,-4370.07,0.000126,2]
[323405185,1713971490473,-3925.91,0.000126,2]
[323405186,1713971490483,-6389.34,0.000126,2]
[323405187,1713971490492,-1806.16,0.000126,2]
[323405188,1713971490502,-7632.03,0.000126,2]
[323405189,1713971490512,-15067.8,0.000126,2]
[323405190,1713971490522,-2615.85,0.000126,2]
[323405191,1713971490534,-20096.18,0.000126,2]
[323405192,1713971490544,-8210.15,0.000126,2]
[323405193,1713971490554,-6711.82,0.000126,2]
[323405194,1713971490563,-15655.38,0.000126,2]
[323405195,1713971490573,-3758.87,0.000126,2]
[323405196,1713971490583,-8286.69,0.000126,2]
[323405197,1713971490594,-5569.95,0.000126,2]
[323405198,1713971490603,-11483.13,0.000126,2]
[323405199,1713971490613,-15875.61,0.000126,2]
[323405200,1713971490622,-6030.73,0.000126,2]
[323405201,1713971490632,-4130.43,0.000126,2]
[323405202,1713971490642,-558.46,0.000126,2]
[323405203,1713971490651,-500.0,0.00012601,2]
[323405204,1713971490660,-500.0,0.00012601,2]
[323405205,1713971490670,-500.0,0.00012601,2]
[323405206,1713971490680,-305.54,0.00012601,2]
[323405207,1713971490689,-500.0,0.00012601,2]
[323405208,1713971490699,-500.0,0.00012601,2]
[323405209,1713971490709,-500.0,0.00012601,2]
[323405210,1713971490719,-500.0,0.00012601,2]
[323405211,1713971490728,-465.95295463,0.00012601,2]
[323405212,1713971490736,-500.0,0.00012601,2]
[323405213,1713971490745,-340.6,0.00012601,2]
[323405214,1713971490755,-257.86,0.00012601,2]
[323405215,1713971490764,-500.0,0.00012601,2]
[323405216,1713971490773,-323.1,0.00012601,2]
[323405217,1713971490785,-500.0,0.00012601,2]
[323405218,1713971490794,-500.0,0.00012601,2]
[323405219,1713971490803,-500.0,0.00012601,2]
[323405220,1713971490812,-423.76,0.00012601,2]
[323405221,1713971490821,-500.0,0.00012601,2]
[323405222,1713971490830,-500.0,0.00012601,2]
[323405223,1713971490839,-500.0,0.00012601,2]
[323405224,1713971490848,-500.0,0.00012601,2]
[323405225,1713971490857,-630.7,0.00012601,2]
[323405226,1713971490866,-216.91,0.00012601,2]
[323405227,1713971490876,-500.0,0.00012601,2]
[323405228,1713971490885,-500.0,0.00012601,2]
[323405229,1713971490894,-574.28,0.00012601,2]
[323405230,1713971490903,-500.0,0.00012601,2]
[323405231,1713971490913,-505.67613268,0.00012601,2]
[323405232,1713971490922,-500.0,0.00012601,2]
[323405233,1713971490930,-491.59397565,0.00012601,2]
[323405234,1713971490939,-840.09,0.00012601,2]
[323405235,1713971490949,-776.48,0.00012601,2]
[323405236,1713971490958,-500.0,0.00012601,2]
[323405237,1713971490967,-500.0,0.00012601,2]
[323405238,1713971490978,-500.0,0.00012601,2]
[323405239,1713971490987,-500.0,0.00012601,2]
[323405240,1713971490997,-500.0,0.00012601,2]
[323405241,1713971491006,-503.79616998,0.00012601,2]
[323405242,1713971491015,-500.0,0.00012601,2]
[323405243,1713971491025,-500.0,0.00012601,2]
[323405244,1713971491038,-500.0,0.00012601,2]
[323405245,1713971491048,-500.0,0.00012601,2]
[323405246,1713971491058,-500.0,0.00012601,2]
[323405247,1713971491067,-1172.99,0.00012601,2]
[323405248,1713971491076,-1195.92,0.00012601,2]
[323405249,1713971491086,-500.0,0.00012601,2]
[323405250,1713971491097,-535.27,0.00012601,2]
[323405251,1713971491107,-500.0,0.00012601,2]
[323405252,1713971491116,-500.0,0.00012601,2]
[323405253,1713971491125,-500.0,0.00012601,2]
[323405254,1713971491134,-500.0,0.00012601,2]
[323405255,1713971491144,-500.0,0.00012601,2]
[323405256,1713971491153,-500.0,0.00012601,2]
[323405257,1713971491162,-315.16,0.00012601,2]
[323405258,1713971491172,-500.0,0.00012601,2]
[323405259,1713971491181,-500.0,0.00012601,2]
[323405260,1713971491191,-460.34,0.00012601,2]
[323405261,1713971491201,-500.0,0.00012601,2]
[323405262,1713971491210,-500.0,0.00012601,2]
[323405263,1713971491220,-500.0,0.00012601,2]
[323405264,1713971491230,-500.0,0.00012601,2]
[323405265,1713971491239,-500.0,0.00012601,2]
[323405266,1713971491248,-500.0,0.00012601,2]
[323405267,1713971491258,-500.0,0.00012601,2]
[323405268,1713971491267,-500.0,0.00012601,2]
[323405269,1713971491280,-557.96,0.00012601,2]
[323405270,1713971491289,-500.0,0.00012601,2]
[323405271,1713971491299,-500.0,0.00012601,2]
[323405272,1713971491309,-500.0,0.00012601,2]
[323405273,1713971491319,-500.0,0.00012601,2]
[323405274,1713971491330,-592.76,0.00012601,2]
[323405275,1713971491344,-500.0,0.00012601,2]
[323405276,1713971491354,-500.0,0.00012601,2]
[323405277,1713971491365,-500.0,0.00012601,2]
[323405278,1713971491374,-500.0,0.00012601,2]
[323405279,1713971491385,-500.0,0.00012601,2]
[323405280,1713971491395,-1027.63,0.00012601,2]
[323405281,1713971491407,-500.0,0.00012601,2]
[323405282,1713971491422,-635.03,0.00012601,2]
[323405283,1713971491432,-500.0,0.00012601,2]
[323405284,1713971491441,-589.96,0.00012601,2]
[323405285,1713971491451,-282.92,0.00012601,2]
[323405286,1713971491461,-500.0,0.00012601,2]
[323405287,1713971491470,-762.98,0.00012601,2]
[323405288,1713971491480,-500.0,0.00012601,2]
[323405289,1713971491490,-450.2,0.00012601,2]
[323405290,1713971491500,-359.28,0.00012601,2]
[323405291,1713971491510,-500.0,0.00012601,2]
[323405292,1713971491519,-500.0,0.00012601,2]
[323405293,1713971491530,-885.68,0.00012601,2]
[323405294,1713971491539,-1123.38,0.00012601,2]
[323405295,1713971491549,-519.32,0.00012601,2]
[323405296,1713971491558,-500.0,0.00012601,2]
[323405297,1713971491568,-500.0,0.00012601,2]
[323405298,1713971491578,-646.14,0.00012601,2]
[323405299,1713971491589,-285.24585607,0.00012602,2]
[323405300,1713971491598,-500.0,0.00012602,2]
[323405301,1713971491608,-500.0,0.00012602,2]
[323405302,1713971491618,-632.41,0.00012602,2]
[323405303,1713971491627,-938.45,0.00012602,2]
[323405304,1713971491637,-500.0,0.00012602,2]
[323405305,1713971491647,-500.0,0.00012602,2]
[323405306,1713971491656,-500.0,0.00012602,2]
[323405307,1713971491666,-500.0,0.00012602,2]
[323405308,1713971491676,-500.0,0.00012602,2]
[323405309,1713971491686,-1522.84,0.00012602,2]
[323405310,1713971491696,-500.0,0.00012602,2]
[323405311,1713971491706,-500.0,0.00012602,2]
[323405312,1713971491716,-500.0,0.00012602,2]
[323405313,1713971491726,-500.0,0.00012602,2]
[323405314,1713971491737,-624.25,0.00012602,2]
[323405315,1713971491748,-500.0,0.00012602,2]
[323405316,1713971491758,-500.0,0.00012602,2]
[323405317,1713971491768,-500.0,0.00012602,2]
[323405318,1713971491779,-703.95,0.00012602,2]
[323405319,1713971491790,-500.0,0.00012602,2]
[323405320,1713971491799,-500.0,0.00012602,2]
[323405321,1713971491809,-638.52,0.00012602,2]
[323405322,1713971491820,-500.0,0.00012602,2]
[323405323,1713971491829,-500.0,0.00012602,2]
[323405324,1713971491839,-750.77,0.00012602,2]
[323405325,1713971491848,-600.02,0.00012602,2]
[323405326,1713971491858,-207.78,0.00012602,2]
[323405327,1713971491867,-500.0,0.00012602,2]
[323405328,1713971491877,-571.84,0.00012602,2]
[323405329,1713971491887,-801.18,0.00012602,2]
[323405330,1713971491897,-500.0,0.00012602,2]
[323405331,1713971491908,-500.0,0.00012602,2]
[323405332,1713971491918,-500.0,0.00012602,2]
[323405333,1713971491928,-571.87,0.00012602,2]
[323405334,1713971491938,-757.62,0.00012602,2]
[323405335,1713971491947,-1868.55,0.00012602,2]
[323405336,1713971491957,-3047.41,0.00012602,2]
[323405337,1713971491967,-224.96,0.00012602,2]
[323405338,1713971491976,-960.72,0.00012602,2]
[323405339,1713971491986,-738.26,0.00012602,2]
[323405340,1713971491996,-500.0,0.00012602,2]
[323405341,1713971492006,-632.55,0.00012602,2]
[323405342,1713971492016,-500.0,0.00012602,2]
[323405343,1713971492025,-488.95,0.00012602,2]
[323405344,1713971492039,-500.0,0.00012602,2]
[323405345,1713971492050,-500.0,0.00012602,2]
[323405346,1713971492060,-500.0,0.00012602,2]
[323405347,1713971492070,-1231.81,0.00012602,2]
[323405348,1713971492080,-4414.65,0.00012602,2]
[323405349,1713971492091,-500.0,0.00012602,2]
[323405350,1713971492101,-1512.32,0.00012602,2]
[323405351,1713971492111,-227.16,0.00012602,2]
[323405352,1713971492120,-500.0,0.00012602,2]
[323405353,1713971492130,-500.0,0.00012602,2]
[323405354,1713971492140,-1160.08,0.00012602,2]
[323405355,1713971492150,-1014.83,0.00012602,2]
[323405356,1713971492159,-150.94,0.00012602,2]
[323405357,1713971492169,-500.0,0.00012602,2]
[323405358,1713971492179,-500.0,0.00012602,2]
[323405359,1713971492188,-505.18058039,0.00012602,2]
[323405360,1713971492198,-500.0,0.00012602,2]
[323405361,1713971492207,-500.0,0.00012602,2]
[323405362,1713971492217,-554.94,0.00012602,2]
[323405363,1713971492226,-981.42,0.00012602,2]
[323405364,1713971492236,-1266.64,0.00012602,2]
[323405365,1713971492246,-500.0,0.00012602,2]
[323405366,1713971492255,-2618.92,0.00012602,2]
[323405367,1713971492265,-500.0,0.00012602,2]
[323405368,1713971492275,-628.40276414,0.00012602,2]
[323405369,1713971492287,-834.92,0.00012602,2]
[323405370,1713971492297,-500.0,0.00012602,2]
[323405371,1713971492307,-928.86,0.00012602,2]
[323405372,1713971492317,-500.0,0.00012602,2]
[323405373,1713971492327,-535.88,0.00012602,2]
[323405374,1713971492340,-2388.92,0.00012602,2]
[323405375,1713971492351,-249.3,0.00012602,2]
[323405376,1713971492360,-500.0,0.00012602,2]
[323405377,1713971492371,-500.0,0.00012602,2]
[323405378,1713971492381,-500.0,0.00012602,2]
[323405379,1713971492391,-500.0,0.00012602,2]
[323405380,1713971492400,-583.43,0.00012602,2]
[323405381,1713971492410,-1814.7,0.00012602,2]
[323405382,1713971492420,-4566.79,0.00012602,2]
[323405383,1713971492432,-386.56,0.00012602,2]
[323405384,1713971492442,-500.0,0.00012602,2]
[323405385,1713971492451,-500.0,0.00012602,2]
[323405386,1713971492461,-500.0,0.00012602,2]
[323405387,1713971492471,-500.0,0.00012602,2]
[323405388,1713971492481,-1008.59,0.00012602,2]
[323405389,1713971492490,-500.0,0.00012602,2]
[323405390,1713971492500,-657.96,0.00012602,2]
[323405391,1713971492510,-523.21729672,0.00012602,2]
[323405392,1713971492520,-500.0,0.00012602,2]
[323405393,1713971492531,-1435.34,0.00012602,2]
[323405394,1713971492541,-500.0,0.00012602,2]
[323405395,1713971492552,-2224.61,0.00012602,2]
[323405396,1713971492562,-4364.47,0.00012602,2]
[323405397,1713971492572,-500.0,0.00012602,2]
[323405398,1713971492583,-620.67,0.00012602,2]
[323405399,1713971492593,-430.49249687,0.00012602,2]
[323405400,1713971492602,-500.0,0.00012602,2]
[323405401,1713971492612,-1798.89,0.00012602,2]
[323405402,1713971492622,-753.37,0.00012602,2]
[323405403,1713971492632,-500.0,0.00012602,2]
[323405404,1713971492642,-641.25,0.00012602,2]
[323405405,1713971492652,-500.0,0.00012602,2]
[323405406,1713971492661,-1172.56,0.00012602,2]
[323405407,1713971492671,-504.66944444,0.00012602,2]
[323405408,1713971492681,-1549.65,0.00012602,2]
[323405409,1713971492691,-505.70799736,0.00012602,2]
[323405410,1713971492701,-4633.7,0.00012602,2]
[323405411,1713971492711,-500.0,0.00012602,2]
[323405412,1713971492721,-2231.62,0.00012602,2]
[323405413,1713971492730,-500.0,0.00012602,2]
[323405414,1713971492740,-640.91,0.00012602,2]
[323405415,1713971492750,-500.0,0.00012602,2]
[323405416,1713971492760,-569.69,0.00012602,2]
[323405417,1713971492770,-500.0,0.00012602,2]
[323405418,1713971492780,-3857.51,0.00012602,2]
[323405419,1713971492790,-500.0,0.00012602,2]
[323405420,1713971492799,-3186.18,0.00012602,2]
[323405421,1713971492809,-880.86,0.00012602,2]
[323405422,1713971492819,-1023.52,0.00012602,2]
[323405423,1713971492829,-500.0,0.00012602,2]
[323405424,1713971492839,-1038.57,0.00012602,2]
[323405425,1713971492849,-475.75,0.00012602,2]
[323405426,1713971492858,-1051.25,0.00012602,2]
[323405427,1713971492868,-174.34999729,0.00012602,2]
[323405428,1713971492878,-500.0,0.00012602,2]
[323405429,1713971492887,-500.0,0.00012602,2]
[323405430,1713971492897,-4170.17,0.00012602,2]
[323405431,1713971492907,-500.0,0.00012602,2]
[323405432,1713971492916,-712.12,0.00012602,2]
[323405433,1713971492926,-811.13,0.00012602,2]
[323405434,1713971492937,-250.5,0.00012602,2]
[323405435,1713971492948,-1516.0,0.00012602,2]
[323405436,1713971492958,-272.48,0.00012602,2]
[323405437,1713971492968,-500.0,0.00012602,2]
[323405438,1713971492977,-500.0,0.00012602,2]
[323405439,1713971492987,-500.0,0.00012602,2]
[323405440,1713971492997,-428.65,0.00012602,2]
[323405441,1713971493007,-2572.9,0.00012602,2]
[323405442,1713971493016,-500.0,0.00012602,2]
[323405443,1713971493027,-500.0,0.00012602,2]
[323405444,1713971493037,-500.0,0.00012602,2]
[323405445,1713971493047,-500.0,0.00012602,2]
[323405446,1713971493057,-1704.77,0.00012602,2]
[323405447,1713971493068,-2085.19,0.00012602,2]
[323405448,1713971493078,-500.0,0.00012602,2]
[323405449,1713971493090,-688.21,0.00012602,2]
[323405450,1713971493102,-1611.38,0.00012602,2]
[323405451,1713971493112,-500.0,0.00012602,2]
[323405452,1713971493122,-500.0,0.00012602,2]
[323405453,1713971493131,-1822.99,0.00012602,2]
[323405454,1713971493141,-301.15,0.00012602,2]
[323405455,1713971493150,-4346.21,0.00012602,2]
[323405456,1713971493160,-4561.56,0.00012602,2]
[323405457,1713971493170,-500.0,0.00012602,2]
[323405458,1713971493179,-1172.2,0.00012602,2]
[323405459,1713971493189,-11758.78,0.00012602,2]
[323405460,1713971493199,-519.24,0.00012602,2]
[323405461,1713971493209,-877.15,0.00012602,2]
[323405462,1713971493219,-500.0,0.00012602,2]
[323405463,1713971493229,-3844.95,0.00012602,2]
[323405464,1713971493238,-1396.93,0.00012602,2]
[323405465,1713971493249,-500.0,0.00012602,2]
[323405466,1713971493259,-24057.34,0.00012602,2]
[323405467,1713971493268,-577.45377455,0.00012602,2]
[323405468,1713971493279,-570.53,0.00012602,2]
[323405469,1713971493289,-500.0,0.00012602,2]
[323405470,1713971493299,-500.0,0.00012602,2]
[323405471,1713971493309,-946.89,0.00012602,2]
[323405472,1713971493318,-500.0,0.00012602,2]
[323405473,1713971493333,-22807.46,0.00012602,2]
[323405474,1713971493343,-20856.91,0.00012602,2]
[323405475,1713971493353,-500.0,0.00012602,2]
[323405476,1713971493363,-7901.37,0.00012602,2]
[323405477,1713971493373,-5859.12,0.00012602,2]
[323405478,1713971493383,-3371.32,0.00012602,2]
[323405479,1713971493393,-500.0,0.00012602,2]
[323405480,1713971493405,-8235.63,0.00012602,2]
[323405481,1713971493416,-2169.73,0.00012602,2]
[323405482,1713971493427,-1402.36,0.00012602,2]
[323405483,1713971493437,-1022.8,0.00012602,2]
[323405484,1713971493446,-500.0,0.00012602,2]
[323405485,1713971493456,-3366.61,0.00012602,2]
[323405486,1713971493467,-377.41909593,0.00012602,2]
[323405487,1713971493476,-11271.93,0.00012602,2]
[323405488,1713971493487,-500.0,0.00012602,2]
[323405489,1713971493497,-500.0,0.00012602,2]
[323405490,1713971493507,-500.0,0.00012602,2]
[323405491,1713971493516,-3149.99,0.00012602,2]
[323405492,1713971493526,-700.26,0.00012602,2]
[323405493,1713971493537,-1077.52,0.00012602,2]
[323405494,1713971493546,-500.0,0.00012602,2]
[323405495,1713971493556,-500.0,0.00012602,2]
[323405496,1713971493566,-500.0,0.00012602,2]
[323405497,1713971493577,-500.0,0.00012602,2]
[323405498,1713971493586,-13896.41,0.00012602,2]
[323405499,1713971493596,-500.0,0.00012602,2]
[323405500,1713971493606,-2645.0,0.00012602,2]
[323405501,1713971493616,-500.0,0.00012602,2]
[323405502,1713971493627,-500.0,0.00012602,2]
[323405503,1713971493637,-500.0,0.00012602,2]
[323405504,1713971493647,-794.05,0.00012602,2]
[323405505,1713971493658,-500.0,0.00012602,2]
[323405506,1713971493669,-500.0,0.00012602,2]
[323405507,1713971493680,-5136.7,0.00012602,2]
[323405508,1713971493689,-2121.92,0.00012602,2]
[323405509,1713971493700,-500.0,0.00012602,2]
[323405510,1713971493709,-500.0,0.00012602,2]
[323405511,1713971493719,-500.0,0.00012602,2]
[323405512,1713971493729,-1006.55,0.00012602,2]
[323405513,1713971493739,-500.0,0.00012602,2]
[323405514,1713971493749,-500.0,0.00012602,2]
[323405515,1713971493759,-196.99,0.00012602,2]
[323405516,1713971493769,-500.0,0.00012602,2]
[323405517,1713971493779,-390.77,0.00012602,2]
[323405518,1713971493789,-555.9,0.00012602,2]
[323405519,1713971493800,-500.0,0.00012602,2]
[323405520,1713971493810,-3852.42,0.00012602,2]
[323405521,1713971493819,-1567.09,0.00012602,2]
[323405522,1713971493829,-500.0,0.00012602,2]
[323405523,1713971493839,-2728.08,0.00012602,2]
[323405524,1713971493849,-1445.4,0.00012602,2]
[323405525,1713971493859,-1239.48,0.00012602,2]
[323405526,1713971493869,-500.0,0.00012602,2]
[323405527,1713971493879,-4557.06,0.00012602,2]
[323405528,1713971493890,-500.0,0.00012602,2]
[323405529,1713971493900,-3462.5,0.00012602,2]
[323405530,1713971493910,-1128.75,0.00012602,2]
[323405531,1713971493919,-1371.31,0.00012602,2]
[323405532,1713971493930,-4632.78,0.00012602,2]
[323405533,1713971494188,-4574.78,0.00012602,2]
[323405534,1713971494199,-500.0,0.00012602,2]
[323405535,1713971494208,-4829.3,0.00012602,2]
[323405536,1713971494217,-9101.65,0.00012602,2]
[323405537,1713971494227,-6293.29,0.00012602,2]
[323405538,1713971494237,-201.92,0.00012602,2]
[323405539,1713971494246,-500.0,0.00012602,2]
[323405540,1713971494255,-12365.63,0.00012602,2]
[323405541,1713971494265,-5842.31,0.00012602,2]
[323405542,1713971494274,-4021.46,0.00012602,2]
[323405543,1713971494285,-2123.91,0.00012602,2]
[323405544,1713971494294,-500.0,0.00012602,2]
[323405545,1713971494304,-500.0,0.00012602,2]
[323405546,1713971494314,-2828.68,0.00012602,2]
[323405547,1713971494325,-6412.45,0.00012602,2]
[323405548,1713971494336,-683.35,0.00012602,2]
[323405549,1713971494346,-4064.0,0.00012602,2]
[323405550,1713971494357,-500.0,0.00012602,2]
[323405551,1713971494368,-5147.12,0.00012602,2]
[323405552,1713971494378,-10655.34,0.00012602,2]
[323405553,1713971494388,-3542.31,0.00012602,2]
[323405554,1713971494397,-349.88704213,0.00012602,2]
[323405555,1713971494409,-500.0,0.00012602,2]
[323405556,1713971494419,-5581.45,0.00012602,2]
[323405557,1713971494429,-500.0,0.00012602,2]
[323405558,1713971494439,-2316.41,0.00012602,2]
[323405559,1713971494449,-19318.67,0.00012602,2]